fUST/lending_fUST_20251029
["ID","MTS","AMOUNT","RATE_DAILY","PERIOD"]
[392572393,1761682234437,-500.0,0.00021917,2]
[392572394,1761682234446,-500.0,0.00021917,2]
[392572395,1761682234455,-500.0,0.00021917,2]
[392572396,1761682234465,-1504.45,0.00021917,2]
[392572397,1761682234474,-672.36,0.00021917,2]
[392572398,1761682234483,-500.0,0.00021917,2]
[392572399,1761682234493,-500.0,0.00021917,2]
[392572400,1761682234502,-638.99,0.00021917,2]
[392572401,1761682234520,-500.0,0.00021917,2]
[392572402,1761682234530,-500.0,0.00021917,2]
[392572403,1761682234539,-500.0,0.00021917,2]
[392572404,1761682234549,-935.82,0.00021917,2]
[392572405,1761682234558,-500.0,0.00021917,2]
[392572406,1761682234567,-500.0,0.00021917,2]
[392572407,1761682234576,-500.0,0.00021917,2]
[392572408,1761682234586,-500.0,0.00021917,2]
[392572409,1761682234595,-500.0,0.00021917,2]
[392572410,1761682234604,-500.0,0.00021917,2]
[392572411,1761682234614,-892.03,0.00021917,2]
[392572412,1761682234624,-500.0,0.00021917,2]
[392572413,1761682234633,-500.0,0.00021917,2]
[392572414,1761682234642,-500.0,0.00021917,2]
[392572415,1761682234655,-633.01,0.00021917,2]
[392572416,1761682234665,-500.0,0.00021917,2]
[392572417,1761682234674,-500.0,0.00021917,2]
[392572418,1761682234685,-500.0,0.00021917,2]
[392572419,1761682234696,-568.68,0.00021917,2]
[392572420,1761682234705,-500.0,0.00021917,2]
[392572421,1761682234715,-500.0,0.00021917,2]
[392572422,1761682234724,-500.0,0.00021917,2]
[392572423,1761682234733,-500.0,0.00021917,2]
[392572424,1761682234743,-500.0,0.00021917,2]
[392572425,1761682234752,-500.0,0.00021917,2]
[392572426,1761682234762,-706.33,0.00021917,2]
[392572427,1761682234771,-500.0,0.00021917,2]
[392572428,1761682234781,-638.16530045,0.00021917,2]
[392572429,1761682234790,-1269.54,0.00021917,2]
[392572430,1761682234799,-500.0,0.00021917,2]
[392572431,1761682234809,-500.0,0.00021917,2]
[392572432,1761682234819,-500.0,0.00021917,2]
[392572433,1761682234829,-652.23,0.00021917,2]
[392572434,1761682234838,-500.0,0.00021917,2]
[392572435,1761682234849,-500.0,0.00021917,2]
[392572436,1761682234859,-1166.32,0.00021917,2]
[392572437,1761682234869,-528.56,0.00021917,2]
[392572438,1761682234879,-500.0,0.00021917,2]
[392572439,1761682234888,-500.0,0.00021917,2]
[392572440,1761682234897,-1068.76,0.00021917,2]
[392572441,1761682234909,-500.0,0.00021917,2]
[392572442,1761682234919,-500.0,0.00021917,2]
[392572443,1761682234929,-767.94,0.00021917,2]
[392572444,1761682234939,-500.0,0.00021917,2]
[392572445,1761682234949,-500.0,0.00021917,2]
[392572446,1761682234959,-500.0,0.00021917,2]
[392572447,1761682234969,-1525.05,0.00021917,2]
[392572448,1761682234978,-1433.79,0.00021917,2]
[392572449,1761682234987,-500.0,0.00021917,2]
[392572450,1761682234997,-824.07,0.00021917,2]
[392572451,1761682235006,-500.0,0.00021917,2]
[392572452,1761682235015,-512.69062894,0.00021917,2]
[392572453,1761682235025,-1776.94,0.00021917,2]
[392572454,1761682235034,-500.0,0.00021917,2]
[392572455,1761682235044,-415.15614797,0.00021917,2]
[392572456,1761682235053,-803.33,0.00021917,2]
[392572457,1761682235063,-500.0,0.00021917,2]
[392572458,1761682235072,-1607.37,0.00021917,2]
[392572459,1761682235081,-500.0,0.00021917,2]
[392572460,1761682235091,-670.52,0.00021917,2]
[392572461,1761682235100,-738.87,0.00021917,2]
[392572462,1761682235109,-857.63,0.00021917,2]
[392572463,1761682235119,-1391.11,0.00021917,2]
[392572464,1761682235128,-500.0,0.00021917,2]
[392572465,1761682235137,-1070.93,0.00021917,2]
[392572466,1761682235147,-500.0,0.00021917,2]
[392572467,1761682235157,-587.19,0.00021917,2]
[392572468,1761682235167,-500.0,0.00021917,2]
[392572469,1761682235176,-500.0,0.00021917,2]
[392572470,1761682235185,-635.61,0.00021917,2]
[392572471,1761682235194,-15108.46,0.00021917,2]
[392572472,1761682235203,-500.0,0.00021917,2]
[392572473,1761682235213,-962.1,0.00021917,2]
[392572474,1761682235222,-500.0,0.00021917,2]
[392572475,1761682235231,-500.0,0.00021917,2]
[392572476,1761682235240,-500.0,0.00021917,2]
[392572477,1761682235250,-500.0,0.00021917,2]
[392572478,1761682235260,-500.0,0.00021917,2]
[392572479,1761682235269,-956.26,0.00021917,2]
[392572480,1761682235279,-565.04,0.00021917,2]
[392572481,1761682235288,-500.0,0.00021917,2]
[392572482,1761682235297,-500.0,0.00021917,2]
[392572483,1761682235306,-500.0,0.00021917,2]
[392572484,1761682235316,-500.0,0.00021917,2]
[392572485,1761682235325,-864.73,0.00021917,2]
[392572486,1761682235334,-461.98772267,0.00021917,2]
[392572487,1761682235343,-618.0,0.00021917,2]
[392572488,1761682235352,-500.0,0.00021917,2]
[392572489,1761682235362,-1366.78,0.00021917,2]
[392572490,1761682235371,-500.0,0.00021917,2]
[392572491,1761682235380,-500.0,0.00021917,2]
[392572492,1761682235389,-999.47,0.00021917,2]
[392572493,1761682235399,-755.44,0.00021917,2]
[392572494,1761682235409,-500.0,0.00021917,2]
[392572495,1761682235419,-1679.8,0.00021917,2]
[392572496,1761682235428,-500.0,0.00021917,2]
[392572497,1761682235437,-578.0,0.00021917,2]
[392572498,1761682235446,-3095.2,0.00021917,2]
[392572499,1761682235455,-500.0,0.00021917,2]
[392572500,1761682235465,-1831.6,0.00021917,2]
[392572501,1761682235474,-500.0,0.00021917,2]
[392572502,1761682235483,-500.0,0.00021917,2]
[392572503,1761682235493,-500.0,0.00021917,2]
[392572504,1761682235502,-500.0,0.00021917,2]
[392572505,1761682235511,-604.97,0.00021917,2]
[392572506,1761682235521,-1299.55,0.00021917,2]
[392572507,1761682235531,-500.0,0.00021917,2]
[392572508,1761682235540,-500.0,0.00021917,2]
[392572509,1761682235549,-1322.85,0.00021917,2]
[392572510,1761682235558,-500.0,0.00021917,2]
[392572511,1761682235568,-517.5216342,0.00021917,2]
[392572512,1761682235577,-500.0,0.00021917,2]
[392572513,1761682235586,-1113.85,0.00021917,2]
[392572514,1761682235595,-840.58,0.00021917,2]
[392572515,1761682235604,-500.0,0.00021917,2]
[392572516,1761682235614,-945.77,0.00021917,2]
[392572517,1761682235623,-2684.35,0.00021917,2]
[392572518,1761682235632,-500.0,0.00021917,2]
[392572519,1761682235910,-500.0,0.00021917,2]
[392572520,1761682235920,-1240.65,0.00021917,2]
[392572521,1761682235930,-500.0,0.00021917,2]
[392572522,1761682235940,-819.17,0.00021917,2]
[392572523,1761682235949,-597.31,0.00021917,2]
[392572524,1761682235959,-1406.07,0.00021917,2]
[392572525,1761682235968,-1096.85,0.00021917,2]
[392572527,1761682235977,-1096.01,0.00021917,2]
[392572529,1761682235987,-500.0,0.00021917,2]
[392572531,1761682235996,-500.0,0.00021917,2]
[392572533,1761682236005,-520.84,0.00021917,2]
[392572535,1761682236014,-1575.99,0.00021917,2]
[392572537,1761682236023,-500.0,0.00021917,2]
[392572540,1761682236032,-500.0,0.00021917,2]
[392572541,1761682236042,-1083.98,0.00021917,2]
[392572544,1761682236051,-526.06,0.00021917,2]
[392572546,1761682236060,-1531.28,0.00021917,2]
[392572548,1761682236071,-500.0,0.00021917,2]
[392572549,1761682236081,-910.91,0.00021917,2]
[392572550,1761682236090,-1220.6,0.00021917,2]
[392572551,1761682236100,-1024.24,0.00021917,2]
[392572553,1761682236109,-500.0,0.00021917,2]
[392572555,1761682236118,-2344.36,0.00021917,2]
[392572557,1761682236128,-500.0,0.00021917,2]
[392572558,1761682236138,-500.0,0.00021917,2]
[392572559,1761682236147,-531.37,0.00021917,2]
[392572560,1761682236157,-519.81,0.00021917,2]
[392572561,1761682236166,-500.0,0.00021917,2]
[392572562,1761682236176,-996.83,0.00021917,2]
[392572563,1761682236185,-500.0,0.00021917,2]
[392572564,1761682236194,-1681.58,0.00021917,2]
[392572565,1761682236203,-1186.69,0.00021917,2]
[392572566,1761682236212,-3793.83,0.00021917,2]
[392572567,1761682236221,-626.34,0.00021917,2]
[392572568,1761682236230,-522.4,0.00021917,2]
[392572569,1761682236240,-256.12462134,0.00021917,2]
[392572570,1761682236251,-648.34,0.00021917,2]
[392572571,1761682236260,-500.0,0.00021917,2]
[392572572,1761682236270,-500.0,0.00021917,2]
[392572573,1761682236280,-500.0,0.00021917,2]
[392572574,1761682236290,-1259.14,0.00021917,2]
[392572575,1761682236299,-500.0,0.00021917,2]
[392572576,1761682236308,-500.0,0.00021917,2]
[392572577,1761682236317,-500.0,0.00021917,2]
[392572578,1761682236326,-500.0,0.00021917,2]
[392572579,1761682236335,-500.0,0.00021917,2]
[392572580,1761682236344,-1208.9,0.00021917,2]
[392572581,1761682236353,-548.17,0.00021917,2]
[392572582,1761682236362,-561.85,0.00021917,2]
[392572583,1761682236372,-528.41,0.00021917,2]
[392572584,1761682236382,-743.27,0.00021917,2]
[392572585,1761682236392,-687.47,0.00021917,2]
[392572586,1761682236403,-291.49713223,0.00021917,2]
[392572587,1761682236414,-500.0,0.00021917,2]
[392572588,1761682236423,-536.33,0.00021917,2]
[392572589,1761682236432,-957.62,0.00021917,2]
[392572590,1761682236441,-500.0,0.00021917,2]
[392572591,1761682236451,-5946.02,0.00021917,2]
[392572592,1761682236460,-500.0,0.00021917,2]
[392572593,1761682236469,-500.0,0.00021917,2]
[392572594,1761682236479,-500.0,0.00021917,2]
[392572595,1761682236488,-500.0,0.00021917,2]
[392572596,1761682236497,-500.0,0.00021917,2]
[392572597,1761682236507,-1427.0,0.00021917,2]
[392572598,1761682236516,-500.0,0.00021917,2]
[392572599,1761682236525,-500.0,0.00021917,2]
[392572600,1761682236534,-2063.37,0.00021917,2]
[392572601,1761682236544,-1028.57,0.00021917,2]
[392572602,1761682236554,-500.0,0.00021917,2]
[392572603,1761682236563,-615.52,0.00021917,2]
[392572604,1761682236573,-500.0,0.00021917,2]
[392572605,1761682236582,-500.0,0.00021917,2]
[392572606,1761682236593,-1899.22,0.00021917,2]
[392572607,1761682236603,-500.81,0.00021917,2]
[392572608,1761682236612,-500.0,0.00021917,2]
[392572609,1761682236621,-500.0,0.00021917,2]
[392572610,1761682236631,-500.0,0.00021917,2]
[392572611,1761682236640,-500.0,0.00021917,2]
[392572612,1761682236649,-1475.15,0.00021917,2]
[392572613,1761682236660,-500.0,0.00021917,2]
[392572614,1761682236669,-500.0,0.00021917,2]
[392572615,1761682236679,-500.0,0.00021917,2]
[392572616,1761682236691,-671.13,0.00021917,2]
[392572617,1761682236701,-1537.13,0.00021917,2]
[392572618,1761682236710,-1473.07,0.00021917,2]
[392572619,1761682236720,-842.85,0.00021917,2]
[392572620,1761682236729,-500.0,0.00021917,2]
[392572621,1761682236738,-500.0,0.00021917,2]
[392572622,1761682236748,-1053.41,0.00021917,2]
[392572623,1761682236758,-1329.51,0.00021917,2]
[392572624,1761682236767,-500.0,0.00021917,2]
[392572625,1761682236777,-676.33,0.00021917,2]
[392572626,1761682236787,-2112.81,0.00021917,2]
[392572627,1761682236797,-2414.78,0.00021917,2]
[392572628,1761682236807,-2118.79,0.00021917,2]
[392572629,1761682236816,-500.0,0.00021917,2]
[392572630,1761682236826,-887.34,0.00021917,2]
[392572631,1761682236835,-500.0,0.00021917,2]
[392572632,1761682236854,-455.62411874,0.00021917,2]
[392572633,1761682236868,-1595.05,0.00021917,2]
[392572634,1761682236879,-3250.71,0.00021917,2]
[392572635,1761682236890,-889.58,0.00021917,2]
[392572636,1761682236900,-717.59,0.00021917,2]
[392572637,1761682236912,-782.16,0.00021917,2]
[392572638,1761682236923,-539.45,0.00021917,2]
[392572639,1761682236933,-500.0,0.00021917,2]
[392572640,1761682236944,-1074.83,0.00021917,2]
[392572641,1761682236954,-500.0,0.00021917,2]
[392572642,1761682236964,-500.0,0.00021917,2]
[392572643,1761682236974,-500.0,0.00021917,2]
[392572644,1761682236984,-504.88,0.00021917,2]
[392572645,1761682236994,-516.86822856,0.00021918,2]
[392572646,1761682237004,-500.0,0.00021918,2]
[392572647,1761682237014,-500.0,0.00021973,2]
[392572648,1761682237024,-500.0,0.00021973,2]
[392572649,1761682237034,-500.0,0.00021973,2]
[392572650,1761682237044,-40742.23,0.00022,7]
[392572651,1761682237055,-158.94902,0.00022,10]
[392572652,1761682237064,-153.357761,0.00022,10]
[392572653,1761682237074,-500.0,0.00022074,4]
[392572654,1761682237085,-32739.50366773,0.00022091,3]
[392572655,1761682237095,-500.0,0.00022191,5]
[392572656,1761682237105,-500.0,0.00022191,2]
[392572657,1761682237115,-500.0,0.00022191,2]
[392572658,1761682237125,-500.0,0.00022191,2]
[392572659,1761682237136,-500.0,0.00022191,2]
[392572660,1761682237146,-575.73,0.00022191,2]
[392572661,1761682237157,-500.0,0.00022191,2]
[392572662,1761682237167,-950.62,0.00022191,2]
[392572663,1761682237177,-504.3,0.00022191,2]
[392572664,1761682237188,-1037.23,0.00022191,2]
[392572665,1761682237198,-500.0,0.00022191,2]
[392572666,1761682237208,-500.0,0.00022191,2]
[392572667,1761682237219,-500.0,0.00022191,2]
[392572668,1761682237229,-500.0,0.00022191,2]
[392572669,1761682237240,-291.85769398,0.00022191,2]
[392572670,1761682237250,-500.0,0.00022191,2]
[392572671,1761682237260,-500.0,0.00022191,2]
[392572672,1761682237270,-500.0,0.00022191,2]
[392572673,1761682237280,-500.0,0.00022191,2]
[392572674,1761682237291,-500.0,0.00022191,2]
[392572675,1761682237302,-500.0,0.00022191,2]
[392572676,1761682237313,-500.0,0.00022191,2]
[392572677,1761682237324,-500.0,0.00022191,2]
[392572678,1761682237335,-546.94,0.00022191,2]
[392572679,1761682237344,-682.5,0.00022191,2]
[392572680,1761682237354,-500.0,0.00022191,2]
[392572681,1761682237364,-500.0,0.00022191,2]
[392572682,1761682237373,-540.91,0.00022191,2]
[392572683,1761682237383,-686.15,0.00022191,2]
[392572684,1761682237393,-500.0,0.00022191,2]
[392572685,1761682237403,-500.0,0.00022191,2]
[392572686,1761682237418,-500.0,0.00022191,2]
[392572687,1761682237428,-500.0,0.00022191,2]
[392572688,1761682237438,-500.0,0.00022191,2]
[392572689,1761682237447,-500.0,0.00022191,2]
[392572690,1761682237457,-500.0,0.00022191,2]
[392572691,1761682237467,-622.75,0.00022191,2]
[392572692,1761682237477,-500.0,0.00022191,2]
[392572693,1761682237486,-500.0,0.00022191,2]
[392572694,1761682237497,-500.0,0.00022191,2]
[392572695,1761682237507,-500.0,0.00022191,2]
[392572696,1761682237518,-500.0,0.00022191,2]
[392572697,1761682237531,-500.0,0.00022191,2]
[392572698,1761682237540,-559.23,0.00022191,2]
[392572699,1761682237551,-500.0,0.00022191,2]
[392572700,1761682237561,-500.0,0.00022191,2]
[392572701,1761682237571,-273.9886897,0.00022191,2]
[392572702,1761682237582,-500.0,0.00022191,2]
[392572703,1761682237593,-500.0,0.00022191,2]
[392572704,1761682237603,-500.0,0.00022191,2]
[392572705,1761682237614,-500.0,0.00022191,2]
[392572706,1761682237624,-500.0,0.00022191,2]
[392572707,1761682237634,-3893.8,0.00022191,2]
[392572708,1761682237645,-500.0,0.00022191,2]
[392572709,1761682237659,-821.34,0.00022191,2]
[392572710,1761682237668,-500.0,0.00022191,2]
[392572711,1761682237679,-500.0,0.00022191,2]
[392572712,1761682237692,-500.0,0.00022191,2]
[392572713,1761682237703,-500.0,0.00022191,2]
[392572715,1761682237713,-500.0,0.00022191,2]
[392572716,1761682237723,-500.0,0.00022191,2]
[392572717,1761682237733,-500.0,0.00022191,2]
[392572718,1761682237743,-500.0,0.00022191,2]
[392572719,1761682237753,-500.0,0.00022191,2]
[392572720,1761682237764,-500.0,0.00022191,2]
[392572721,1761682237774,-904.34,0.00022191,2]
[392572722,1761682237784,-500.0,0.00022191,2]
[392572723,1761682237794,-2152.73,0.00022191,2]
[392572724,1761682237804,-500.0,0.00022191,2]
[392572725,1761682237814,-500.0,0.00022191,2]
[392572728,1761682237824,-500.0,0.00022191,2]
[392572731,1761682237834,-500.0,0.00022191,2]
[392572734,1761682237844,-600.41,0.00022191,2]
[392572737,1761682237854,-500.0,0.00022191,2]
[392572742,1761682237864,-500.0,0.00022191,2]
[392572745,1761682237874,-599.43,0.00022191,2]
[392572747,1761682237884,-696.13,0.00022191,2]
[392572749,1761682237894,-500.0,0.00022191,2]
[392572751,1761682237904,-780.8,0.00022191,2]
[392572753,1761682237915,-678.64,0.00022191,2]
[392572755,1761682237925,-500.0,0.00022191,2]
[392572756,1761682237935,-500.0,0.00022191,2]
[392572758,1761682237946,-500.0,0.00022191,2]
[392572760,1761682237957,-500.0,0.00022191,2]
[392572763,1761682237968,-500.0,0.00022191,2]
[392572765,1761682237977,-500.0,0.00022191,2]
[392572767,1761682237987,-504.17,0.00022191,2]
[392572768,1761682237996,-764.75,0.00022191,2]
[392572770,1761682238005,-500.0,0.00022191,2]
[392572772,1761682238015,-513.07,0.00022191,2]
[392572775,1761682238025,-500.0,0.00022191,2]
[392572777,1761682238035,-500.0,0.00022191,2]
[392572778,1761682238045,-784.08,0.00022191,2]
[392572780,1761682238054,-500.0,0.00022191,2]
[392572782,1761682238064,-500.0,0.00022191,2]
[392572784,1761682238073,-500.0,0.00022191,2]
[392572786,1761682238083,-634.41,0.00022191,2]
[392572788,1761682238093,-601.91,0.00022191,2]
[392572790,1761682238102,-836.41,0.00022191,2]
[392572792,1761682238112,-500.0,0.00022191,2]
[392572794,1761682238122,-500.0,0.00022191,2]
[392572796,1761682238132,-500.0,0.00022191,2]
[392572798,1761682238142,-500.0,0.00022191,2]
[392572800,1761682238152,-763.15,0.00022191,2]
[392572801,1761682238165,-1592.21,0.00022191,2]
[392572802,1761682238175,-500.0,0.00022191,2]
[392572804,1761682238184,-500.0,0.00022191,2]
[392572806,1761682238194,-1161.6,0.00022191,2]
[392572808,1761682238204,-500.0,0.00022191,2]
[392572809,1761682238214,-522.18,0.00022191,2]
[392572810,1761682238223,-500.0,0.00022191,2]
[392572812,1761682238233,-500.0,0.00022191,2]
[392572813,1761682238242,-513.45,0.00022191,2]
[392572815,1761682238252,-500.0,0.00022191,2]
[392572816,1761682238262,-500.0,0.00022191,2]
[392572817,1761682238272,-500.0,0.00022191,2]
[392572818,1761682238282,-863.37,0.00022191,2]
[392572819,1761682238291,-500.0,0.00022191,2]
[392572820,1761682238301,-500.0,0.00022191,2]
[392572821,1761682238311,-1610.42,0.00022191,2]
[392572822,1761682238320,-500.0,0.00022191,2]
[392572823,1761682238329,-500.0,0.00022191,2]
[392572824,1761682238339,-626.74350271,0.00022191,2]
[392572825,1761682238349,-928.7,0.00022191,2]
[392572827,1761682238358,-500.0,0.00022191,2]
[392572829,1761682238368,-500.0,0.00022191,2]
[392572834,1761682238448,-500.0,0.00022191,2]
[392572835,1761682238458,-500.0,0.00022191,2]
[392572836,1761682238467,-500.0,0.00022191,2]
[392572837,1761682238476,-500.0,0.00022191,2]
[392572838,1761682238485,-969.96,0.00022191,2]
[392572839,1761682238494,-500.0,0.00022191,2]
[392572840,1761682238503,-500.0,0.00022191,2]
[392572841,1761682238513,-500.0,0.00022191,2]
[392572842,1761682238522,-500.0,0.00022191,2]
[392572843,1761682238531,-500.0,0.00022191,2]
[392572844,1761682238540,-500.0,0.00022191,2]
[392572845,1761682238549,-500.0,0.00022191,2]
[392572846,1761682238559,-678.85,0.00022191,2]
[392572847,1761682238568,-630.62,0.00022191,2]
[392572848,1761682238577,-500.0,0.00022191,2]
[392572849,1761682238586,-500.0,0.00022191,2]
[392572850,1761682238595,-500.0,0.00022191,2]
[392572851,1761682238605,-525.68,0.00022191,2]
[392572852,1761682238614,-500.0,0.00022191,2]
[392572853,1761682238624,-500.0,0.00022191,2]
[392572854,1761682238633,-500.0,0.00022191,2]
[392572855,1761682238643,-1504.45,0.00022191,2]
[392572856,1761682238653,-672.36,0.00022191,2]
[392572857,1761682238664,-500.0,0.00022191,2]
[392572858,1761682238673,-500.0,0.00022191,2]
[392572859,1761682238683,-638.99,0.00022191,2]
[392572860,1761682238696,-500.0,0.00022191,2]
[392572861,1761682238705,-500.0,0.00022191,2]
[392572862,1761682238716,-500.0,0.00022191,2]
[392572863,1761682238725,-935.82,0.00022191,2]
[392572864,1761682238735,-500.0,0.00022191,2]
[392572865,1761682238744,-500.0,0.00022191,2]
[392572866,1761682238754,-500.0,0.00022191,2]
[392572867,1761682238763,-500.0,0.00022191,2]
[392572868,1761682238772,-500.0,0.00022191,2]
[392572869,1761682238781,-500.0,0.00022191,2]
[392572870,1761682238791,-892.03,0.00022191,2]
[392572871,1761682238800,-500.0,0.00022191,2]
[392572872,1761682238809,-500.0,0.00022191,2]
[392572873,1761682238820,-500.0,0.00022191,2]
[392572874,1761682238830,-633.01,0.00022191,2]
[392572875,1761682238839,-500.0,0.00022191,2]
[392572876,1761682238849,-500.0,0.00022191,2]
[392572877,1761682238859,-500.0,0.00022191,2]
[392572878,1761682238870,-568.68,0.00022191,2]
[392572879,1761682238880,-500.0,0.00022191,2]
[392572880,1761682238890,-500.0,0.00022191,2]
[392572881,1761682238900,-500.0,0.00022191,2]
[392572882,1761682238912,-500.0,0.00022191,2]
[392572883,1761682238922,-500.0,0.00022191,2]
[392572884,1761682238932,-500.0,0.00022191,2]
[392572885,1761682238942,-706.33,0.00022191,2]
[392572886,1761682238953,-500.0,0.00022191,2]
[392572887,1761682238963,-1269.54,0.00022191,2]
[392572888,1761682238973,-500.0,0.00022191,2]
[392572889,1761682238983,-500.0,0.00022191,2]
[392572890,1761682238993,-492.6092857,0.00022191,2]
[392572891,1761682239003,-652.23,0.00022191,2]
[392572892,1761682239012,-500.0,0.00022191,2]
[392572893,1761682239021,-500.0,0.00022191,2]
[392572894,1761682239030,-1166.32,0.00022191,2]
[392572895,1761682239040,-528.56,0.00022191,2]
[392572896,1761682239049,-525.00572553,0.00022191,2]
[392572897,1761682239059,-500.0,0.00022191,2]
[392572898,1761682239068,-1068.76,0.00022191,2]
[392572899,1761682239078,-500.0,0.00022191,2]
[392572900,1761682239087,-500.0,0.00022191,2]
[392572901,1761682239097,-767.94,0.00022191,2]
[392572902,1761682239106,-500.0,0.00022191,2]
[392572903,1761682239117,-500.0,0.00022191,2]
[392572904,1761682239126,-500.0,0.00022191,2]
[392572905,1761682239136,-1525.05,0.00022191,2]
[392572906,1761682239146,-1433.79,0.00022191,2]
[392572907,1761682239156,-500.0,0.00022191,2]
[392572908,1761682239166,-824.07,0.00022191,2]
[392572909,1761682239176,-500.0,0.00022191,2]
[392572910,1761682239186,-1776.94,0.00022191,2]
[392572911,1761682239195,-500.0,0.00022191,2]
[392572912,1761682239204,-803.33,0.00022191,2]
[392572913,1761682239214,-500.0,0.00022191,2]
[392572914,1761682239223,-1607.37,0.00022191,2]
[392572915,1761682239232,-500.0,0.00022191,2]
[392572916,1761682239241,-670.52,0.00022191,2]
[392572917,1761682239251,-738.87,0.00022191,2]
[392572918,1761682239260,-857.63,0.00022191,2]
[392572919,1761682239269,-1391.11,0.00022191,2]
[392572920,1761682239278,-500.0,0.00022191,2]
[392572921,1761682239288,-1070.93,0.00022191,2]
[392572922,1761682239297,-500.0,0.00022191,2]
[392572923,1761682239307,-587.19,0.00022191,2]
[392572924,1761682239316,-500.0,0.00022191,2]
[392572925,1761682239325,-500.0,0.00022191,2]
[392572926,1761682239334,-635.61,0.00022191,2]
[392572927,1761682239343,-15108.46,0.00022191,2]
[392572928,1761682239352,-500.0,0.00022191,2]
[392572929,1761682239361,-962.1,0.00022191,2]
[392572930,1761682239371,-500.0,0.00022191,2]
[392572931,1761682239380,-500.0,0.00022191,2]
[392572932,1761682239389,-500.0,0.00022191,2]
[392572933,1761682239398,-500.0,0.00022191,2]
[392572934,1761682239409,-500.0,0.00022191,2]
[392572935,1761682239418,-956.26,0.00022191,2]
[392572936,1761682239427,-565.04,0.00022191,2]
[392572937,1761682239437,-500.0,0.00022191,2]
[392572938,1761682239446,-500.0,0.00022191,2]
[392572939,1761682239455,-500.0,0.00022191,2]
[392572940,1761682239465,-500.0,0.00022191,2]
[392572941,1761682239474,-864.73,0.00022191,2]
[392572942,1761682239483,-618.0,0.00022191,2]
[392572943,1761682239492,-500.0,0.00022191,2]
[392572944,1761682239502,-1366.78,0.00022191,2]
[392572945,1761682239511,-500.0,0.00022191,2]
[392572946,1761682239521,-500.0,0.00022191,2]
[392572947,1761682239530,-999.47,0.00022191,2]
[392572948,1761682239540,-755.44,0.00022191,2]
[392572949,1761682239549,-500.0,0.00022191,2]
[392572950,1761682239558,-1679.8,0.00022191,2]
[392572951,1761682239567,-500.0,0.00022191,2]
[392572952,1761682239577,-578.0,0.00022191,2]
[392572953,1761682239586,-3095.2,0.00022191,2]
[392572954,1761682239596,-500.0,0.00022191,2]
[392572955,1761682239607,-1831.6,0.00022191,2]
[392572956,1761682239616,-500.0,0.00022191,2]
[392572957,1761682239625,-500.0,0.00022191,2]
[392572958,1761682239634,-500.0,0.00022191,2]
[392572959,1761682239644,-500.0,0.00022191,2]
[392572960,1761682239653,-604.97,0.00022191,2]